[Event "Late-Titled-Tuesday-Blitz-May-28-2024"]
[Site "Chess.com"]
[Date "2024.05.28"]
[Round "8"]
[White "Flaccidmoves"]
[Black "PhileKhoob"]
[Result "1-0"]
[WhiteElo "2500"]
[BlackElo "2327"]
[TimeControl "180+1"]
[EndTime "15:29:08 PDT"]
[Termination "Flaccidmoves won by resignation"]

1. e4 {[%clk 0:02:59.8]} 1... c6 {[%clk 0:03:00]} 2. d3 {[%clk 0:02:56.7]} 2...
d5 {[%clk 0:02:59.9]} 3. Nd2 {[%clk 0:02:57.4]} 3... e5 {[%clk 0:02:58.4]} 4.
Ngf3 {[%clk 0:02:56.4]} 4... Bd6 {[%clk 0:02:56.9]} 5. g3 {[%clk 0:02:56.9]}
5... Nf6 {[%clk 0:02:52.7]} 6. Bg2 {[%clk 0:02:57.1]} 6... Be6 {[%clk
0:02:48.7]} 7. O-O {[%clk 0:02:57.1]} 7... O-O {[%clk 0:02:47]} 8. Re1 {[%clk
0:02:56.6]} 8... Nbd7 {[%clk 0:02:37.7]} 9. c3 {[%clk 0:02:55.3]} 9... dxe4
{[%clk 0:02:26.2]} 10. Nxe4 {[%clk 0:02:52.4]} 10... Nxe4 {[%clk 0:02:25.1]} 11.
dxe4 {[%clk 0:02:53.3]} 11... Bc7 {[%clk 0:02:13.5]} 12. Be3 {[%clk 0:02:52.1]}
12... Nb6 {[%clk 0:02:04.8]} 13. b3 {[%clk 0:02:51.1]} 13... Qe7 {[%clk
0:02:01.2]} 14. a4 {[%clk 0:02:49]} 14... Rfd8 {[%clk 0:01:55.5]} 15. Qc2 {[%clk
0:02:49]} 15... a5 {[%clk 0:01:54.9]} 16. Nh4 {[%clk 0:02:46.6]} 16... f6 {[%clk
0:01:53.8]} 17. Nf5 {[%clk 0:02:41.6]} 17... Qf7 {[%clk 0:01:52.7]} 18. c4
{[%clk 0:02:36.5]} 18... Nc8 {[%clk 0:01:46.6]} 19. Rab1 {[%clk 0:02:26.1]}
19... Nd6 {[%clk 0:01:35.8]} 20. c5 {[%clk 0:02:25.1]} 20... Nxf5 {[%clk
0:01:34.4]} 21. exf5 {[%clk 0:02:26]} 21... Bd5 {[%clk 0:01:34.7]} 22. Be4
{[%clk 0:02:23]} 22... Bxe4 {[%clk 0:01:33.1]} 23. Qxe4 {[%clk 0:02:23.9]} 23...
Rd5 {[%clk 0:01:32.5]} 24. b4 {[%clk 0:02:10.6]} 24... axb4 {[%clk 0:01:28.7]}
25. Red1 {[%clk 0:01:47.6]} 25... Rad8 {[%clk 0:01:10.2]} 26. Rxd5 {[%clk
0:01:46.4]} 26... cxd5 {[%clk 0:01:09.9]} 27. Qxb4 {[%clk 0:01:46.4]} 27... d4
{[%clk 0:01:09.4]} 28. Bd2 {[%clk 0:01:45.9]} 28... Rb8 {[%clk 0:01:05.7]} 29.
c6 {[%clk 0:01:43.3]} 29... b6 {[%clk 0:00:49.2]} 30. a5 {[%clk 0:01:42.8]}
30... Qd5 {[%clk 0:00:30.7]} 31. Qe7 {[%clk 0:01:39.5]} 31... Qxc6 {[%clk
0:00:25.1]} 32. Rc1 {[%clk 0:01:38.6]} 32... Qd6 {[%clk 0:00:21.6]} 33. Rxc7
{[%clk 0:01:35.4]} 33... Qxe7 {[%clk 0:00:21.1]} 34. Rxe7 {[%clk 0:01:36.3]}
34... bxa5 {[%clk 0:00:20.4]} 35. Bxa5 {[%clk 0:01:35.9]} 35... Rb5 {[%clk
0:00:16.2]} 36. Bd2 {[%clk 0:01:20.7]} 36... Rb2 {[%clk 0:00:14.8]} 37. Ba5
{[%clk 0:01:16.7]} 37... Ra2 {[%clk 0:00:13.7]} 38. Bb6 {[%clk 0:01:13.2]} 38...
Rc2 {[%clk 0:00:11.1]} 39. Rd7 {[%clk 0:01:08.1]} 39... h6 {[%clk 0:00:09.8]}
40. Kf1 {[%clk 0:01:04.4]} 40... Rb2 {[%clk 0:00:09.1]} 41. Bc5 {[%clk
0:01:02.1]} 41... Rc2 {[%clk 0:00:08.7]} 42. Be7 {[%clk 0:01:00.5]} 42... Rc3
{[%clk 0:00:08]} 43. Ke2 {[%clk 0:00:57]} 43... Rc2+ {[%clk 0:00:06.5]} 44. Kf3
{[%clk 0:00:55.2]} 44... Rc3+ {[%clk 0:00:06.6]} 45. Ke4 {[%clk 0:00:54.1]}
45... Rc2 {[%clk 0:00:06.2]} 46. f4 {[%clk 0:00:51.5]} 46... exf4 {[%clk
0:00:02.1]} 47. Kxf4 {[%clk 0:00:46.6]} 47... Rf2+ {[%clk 0:00:01.7]} 48. Kg4
{[%clk 0:00:43.6]} 48... Rxh2 {[%clk 0:00:02.2]} 49. Rxd4 {[%clk 0:00:42.9]}
49... Re2 {[%clk 0:00:03.1]} 50. Rd7 {[%clk 0:00:42.5]} 50... Kf7 {[%clk
0:00:03.4]} 51. Ba3+ {[%clk 0:00:40.2]} 51... Kg8 {[%clk 0:00:03.4]} 52. Rd8+
{[%clk 0:00:39.7]} 52... Kh7 {[%clk 0:00:02.7]} 53. Bf8 {[%clk 0:00:39.5]} 53...
Re4+ {[%clk 0:00:02.6]} 54. Kf3 {[%clk 0:00:39.3]} 54... Re5 {[%clk 0:00:02.3]}
55. g4 {[%clk 0:00:38.1]} 55... Ra5 {[%clk 0:00:02.1]} 56. Rd7 {[%clk
0:00:38.1]} 56... Kg8 {[%clk 0:00:02.4]} 57. Bxg7 {[%clk 0:00:37.7]} 57... Ra3+
{[%clk 0:00:02.7]} 58. Kg2 {[%clk 0:00:37.5]} 58... Ra2+ {[%clk 0:00:02.9]} 59.
Kg3 {[%clk 0:00:37.9]} 59... Ra3+ {[%clk 0:00:03.3]} 60. Kh4 {[%clk 0:00:38.4]}
60... Ra1 {[%clk 0:00:03.1]} 61. Bxf6 {[%clk 0:00:38.3]} 61... Ra6 {[%clk
0:00:02.5]} 62. Be5 {[%clk 0:00:37.9]} 62... Ra5 {[%clk 0:00:02.3]} 63. Bf4
{[%clk 0:00:38.1]} 1-0

[Event "Late-Titled-Tuesday-Blitz-May-28-2024"]
[Site "Chess.com"]
[Date "2024.05.28"]
[Round "8"]
[White "Robert_Oros"]
[Black "DonMicheleCorleone"]
[Result "0-1"]
[WhiteElo "2423"]
[BlackElo "2511"]
[TimeControl "180+1"]
[EndTime "15:29:17 PDT"]
[Termination "DonMicheleCorleone won on time"]

1. d4 {[%clk 0:03:00.9]} 1... d5 {[%clk 0:02:57.9]} 2. c4 {[%clk 0:03:00.6]}
2... dxc4 {[%clk 0:02:58.3]} 3. Nf3 {[%clk 0:02:58.2]} 3... Nf6 {[%clk
0:02:57.7]} 4. e3 {[%clk 0:02:57.8]} 4... e6 {[%clk 0:02:57.6]} 5. Bxc4 {[%clk
0:02:57.7]} 5... c5 {[%clk 0:02:58]} 6. O-O {[%clk 0:02:56.6]} 6... Nc6 {[%clk
0:02:57.9]} 7. dxc5 {[%clk 0:02:52.7]} 7... Qxd1 {[%clk 0:02:55.4]} 8. Rxd1
{[%clk 0:02:52.9]} 8... Bxc5 {[%clk 0:02:55.9]} 9. a3 {[%clk 0:02:51]} 9... O-O
{[%clk 0:02:54.3]} 10. b4 {[%clk 0:02:49.6]} 10... Be7 {[%clk 0:02:54.4]} 11.
Bb2 {[%clk 0:02:48.1]} 11... b6 {[%clk 0:02:53.8]} 12. Nc3 {[%clk 0:02:40.7]}
12... Bb7 {[%clk 0:02:53.9]} 13. Nb5 {[%clk 0:02:39.2]} 13... Rac8 {[%clk
0:02:48.1]} 14. Bf1 {[%clk 0:02:31.4]} 14... Rfd8 {[%clk 0:02:40.1]} 15. Nfd4
{[%clk 0:02:24.2]} 15... Nxd4 {[%clk 0:02:35]} 16. Bxd4 {[%clk 0:02:22.6]} 16...
a6 {[%clk 0:02:12.1]} 17. Na7 {[%clk 0:02:20.4]} 17... Rxd4 {[%clk 0:02:12]} 18.
Nxc8 {[%clk 0:01:54.9]} 18... Rxd1 {[%clk 0:02:11.8]} 19. Rxd1 {[%clk
0:01:55.6]} 19... Bxc8 {[%clk 0:02:11.1]} 20. Rc1 {[%clk 0:01:56.2]} 20... Bd7
{[%clk 0:02:03.3]} 21. Bxa6 {[%clk 0:01:55.2]} 21... Kf8 {[%clk 0:01:56.6]} 22.
f3 {[%clk 0:01:50.8]} 22... Ke8 {[%clk 0:01:49.6]} 23. e4 {[%clk 0:01:50.9]}
23... Kd8 {[%clk 0:01:47.7]} 24. Kf2 {[%clk 0:01:45]} 24... e5 {[%clk
0:01:46.7]} 25. Bc4 {[%clk 0:01:42.7]} 25... Be8 {[%clk 0:01:45]} 26. Rd1+
{[%clk 0:01:33.6]} 26... Kc7 {[%clk 0:01:44.7]} 27. Bb3 {[%clk 0:01:30]} 27...
b5 {[%clk 0:01:42.9]} 28. g3 {[%clk 0:01:23.6]} 28... Nd7 {[%clk 0:01:40.5]} 29.
f4 {[%clk 0:01:16.8]} 29... Bd6 {[%clk 0:01:33.6]} 30. Ke3 {[%clk 0:01:08.3]}
30... f6 {[%clk 0:01:15.6]} 31. Be6 {[%clk 0:01:06.7]} 31... Nb6 {[%clk
0:01:13.4]} 32. Rc1+ {[%clk 0:01:06.3]} 32... Kb7 {[%clk 0:01:10.3]} 33. h4
{[%clk 0:00:58.9]} 33... Bc6 {[%clk 0:01:03.6]} 34. h5 {[%clk 0:00:51.3]} 34...
h6 {[%clk 0:00:54.4]} 35. Bb3 {[%clk 0:00:41.9]} 35... Bd7 {[%clk 0:00:47.6]}
36. Bd5+ {[%clk 0:00:37.8]} 36... Nxd5+ {[%clk 0:00:44]} 37. exd5 {[%clk
0:00:38]} 37... f5 {[%clk 0:00:32.3]} 38. Rf1 {[%clk 0:00:33.6]} 38... e4 {[%clk
0:00:31.6]} 39. Kd4 {[%clk 0:00:31.2]} 39... Be8 {[%clk 0:00:29.8]} 40. Rc1
{[%clk 0:00:26.2]} 40... Bxh5 {[%clk 0:00:20.1]} 41. Rc6 {[%clk 0:00:24.9]}
41... Bc7 {[%clk 0:00:19.5]} 42. Kc5 {[%clk 0:00:20.3]} 42... e3 {[%clk
0:00:17.9]} 43. Re6 {[%clk 0:00:20.1]} 43... e2 {[%clk 0:00:17.1]} 44. Re7
{[%clk 0:00:18.3]} 44... Kc8 {[%clk 0:00:13.3]} 45. d6 {[%clk 0:00:16.3]} 45...
Bd8 {[%clk 0:00:11.5]} 46. Re5 {[%clk 0:00:14]} 46... Kd7 {[%clk 0:00:08.8]} 47.
Re3 {[%clk 0:00:12]} 47... Bf6 {[%clk 0:00:06.9]} 48. Kxb5 {[%clk 0:00:01.3]}
48... Kxd6 {[%clk 0:00:06.6]} 49. Kc4 {[%clk 0:00:01]} 49... Bf3 {[%clk
0:00:04.9]} 50. b5 {[%clk 0:00:01]} 50... Bd8 {[%clk 0:00:03]} 0-1

[Event "Late-Titled-Tuesday-Blitz-May-28-2024"]
[Site "Chess.com"]
[Date "2024.05.28"]
[Round "8"]
[White "tactic"]
[Black "IngOscarArdila"]
[Result "0-1"]
[WhiteElo "2539"]
[BlackElo "2298"]
[TimeControl "180+1"]
[EndTime "15:29:18 PDT"]
[Termination "IngOscarArdila won by checkmate"]

1. e4 {[%clk 0:03:00.9]} 1... e5 {[%clk 0:02:58.7]} 2. Nf3 {[%clk 0:03:00.7]}
2... Nf6 {[%clk 0:02:57.9]} 3. d4 {[%clk 0:03:00.7]} 3... Nxe4 {[%clk
0:02:57.9]} 4. Bd3 {[%clk 0:03:01.2]} 4... d5 {[%clk 0:02:58]} 5. Nxe5 {[%clk
0:03:01.6]} 5... Nd7 {[%clk 0:02:57.8]} 6. c4 {[%clk 0:03:01.8]} 6... Nxe5
{[%clk 0:02:57.9]} 7. dxe5 {[%clk 0:03:02.7]} 7... c6 {[%clk 0:02:56.1]} 8. Bxe4
{[%clk 0:03:02.1]} 8... dxe4 {[%clk 0:02:56.5]} 9. Qxd8+ {[%clk 0:03:03]} 9...
Kxd8 {[%clk 0:02:56.7]} 10. Nc3 {[%clk 0:03:03.4]} 10... Be6 {[%clk 0:02:56.3]}
11. Nxe4 {[%clk 0:02:59.2]} 11... Bxc4 {[%clk 0:02:55.6]} 12. Bg5+ {[%clk
0:02:58.8]} 12... Kc7 {[%clk 0:02:50]} 13. a3 {[%clk 0:02:36.7]} 13... Re8
{[%clk 0:02:48.4]} 14. O-O-O {[%clk 0:02:23.8]} 14... Bd5 {[%clk 0:02:36.6]} 15.
Nc3 {[%clk 0:02:15.6]} 15... Bb3 {[%clk 0:02:32]} 16. Rd3 {[%clk 0:02:10.5]}
16... Bc5 {[%clk 0:02:26.3]} 17. Be3 {[%clk 0:02:02]} 17... Bc4 {[%clk
0:02:16.7]} 18. Bxc5 {[%clk 0:01:32.3]} 18... Bxd3 {[%clk 0:02:08.8]} 19. f4
{[%clk 0:01:31.2]} 19... b6 {[%clk 0:02:08.1]} 20. Bd6+ {[%clk 0:01:31.2]} 20...
Kc8 {[%clk 0:02:07]} 21. Rd1 {[%clk 0:01:31.6]} 21... Bf5 {[%clk 0:02:03.7]} 22.
h3 {[%clk 0:01:28.9]} 22... h5 {[%clk 0:02:03.4]} 23. b4 {[%clk 0:01:27.5]}
23... f6 {[%clk 0:02:02.9]} 24. b5 {[%clk 0:01:27.5]} 24... Kb7 {[%clk
0:01:56.7]} 25. bxc6+ {[%clk 0:01:25]} 25... Kxc6 {[%clk 0:01:57.6]} 26. Rd4
{[%clk 0:01:25.4]} 26... fxe5 {[%clk 0:01:56.5]} 27. fxe5 {[%clk 0:01:25.2]}
27... Rc8 {[%clk 0:01:53.2]} 28. Rf4 {[%clk 0:01:23.7]} 28... g6 {[%clk
0:01:49.9]} 29. Kd2 {[%clk 0:01:23.7]} 29... Kd7 {[%clk 0:01:44.1]} 30. Ra4
{[%clk 0:01:19.4]} 30... a5 {[%clk 0:01:43]} 31. Nd5 {[%clk 0:01:19.8]} 31...
Rc2+ {[%clk 0:01:42]} 32. Ke3 {[%clk 0:01:19]} 32... Rxg2 {[%clk 0:01:40.9]} 33.
Nxb6+ {[%clk 0:01:18.9]} 33... Kc6 {[%clk 0:01:41.3]} 34. Kf3 {[%clk 0:01:04.2]}
34... Rh2 {[%clk 0:01:31.3]} 35. Nc4 {[%clk 0:01:02.5]} 35... Rxh3+ {[%clk
0:01:30.8]} 36. Kf4 {[%clk 0:01:00.1]} 36... Kb5 {[%clk 0:01:24.7]} 37. Nb2
{[%clk 0:01:00.4]} 37... Rh4+ {[%clk 0:01:20.5]} 38. Kg5 {[%clk 0:00:57.7]}
38... Rxa4 {[%clk 0:01:21.4]} 39. Nd1 {[%clk 0:00:54.8]} 39... Rd4 {[%clk
0:01:17.7]} 40. Ne3 {[%clk 0:00:53.4]} 40... Kc6 {[%clk 0:01:05.2]} 41. Be7
{[%clk 0:00:52.1]} 41... Be4 {[%clk 0:00:59.9]} 42. Kf6 {[%clk 0:00:46.5]} 42...
Rb8 {[%clk 0:00:58.2]} 43. e6 {[%clk 0:00:45.5]} 43... Rb3 {[%clk 0:00:56.4]}
44. Nf1 {[%clk 0:00:22.3]} 44... Rf3+ {[%clk 0:00:53.7]} 45. Ke5 {[%clk
0:00:23]} 45... Rxf1 {[%clk 0:00:40.3]} 46. Kxd4 {[%clk 0:00:22.6]} 46... Bf5
{[%clk 0:00:40.8]} 47. Bd8 {[%clk 0:00:21.3]} 47... Bxe6 {[%clk 0:00:37.1]} 48.
Bxa5 {[%clk 0:00:21.7]} 48... Rf5 {[%clk 0:00:34.3]} 49. Be1 {[%clk 0:00:20]}
49... g5 {[%clk 0:00:34.1]} 50. Ke4 {[%clk 0:00:20.1]} 50... g4 {[%clk
0:00:33.4]} 51. Bh4 {[%clk 0:00:19.8]} 51... Rf3 {[%clk 0:00:29.2]} 52. a4
{[%clk 0:00:20.5]} 52... Bb3 {[%clk 0:00:25.5]} 53. a5 {[%clk 0:00:20.7]} 53...
Kb5 {[%clk 0:00:24.1]} 54. Bd8 {[%clk 0:00:20.4]} 54... Bc2+ {[%clk 0:00:20.1]}
55. Kd4 {[%clk 0:00:20]} 55... g3 {[%clk 0:00:20]} 56. a6 {[%clk 0:00:17.2]}
56... Kxa6 {[%clk 0:00:19.8]} 57. Kd5 {[%clk 0:00:13.2]} 57... g2 {[%clk
0:00:19.8]} 58. Bb6 {[%clk 0:00:14.1]} 58... Kxb6 {[%clk 0:00:20]} 59. Kd4
{[%clk 0:00:14.4]} 59... g1=Q+ {[%clk 0:00:20.2]} 60. Ke5 {[%clk 0:00:15.3]}
60... Qe3+ {[%clk 0:00:20.1]} 61. Kd5 {[%clk 0:00:15.5]} 61... Rf5+ {[%clk
0:00:20.3]} 62. Kd6 {[%clk 0:00:15.9]} 62... Qd4+ {[%clk 0:00:19.9]} 63. Ke6
{[%clk 0:00:16.1]} 63... Rf6+ {[%clk 0:00:20.1]} 64. Ke7 {[%clk 0:00:16.5]}
64... Qd6+ {[%clk 0:00:20.7]} 65. Ke8 {[%clk 0:00:17.3]} 65... Rf8# {[%clk
0:00:21.1]} 0-1

[Event "Late-Titled-Tuesday-Blitz-May-28-2024"]
[Site "Chess.com"]
[Date "2024.05.28"]
[Round "8"]
[White "Tibmat"]
[Black "VD_coach"]
[Result "1-0"]
[WhiteElo "2681"]
[BlackElo "2530"]
[TimeControl "180+1"]
[EndTime "15:29:25 PDT"]
[Termination "Tibmat won by resignation"]

1. e4 {[%clk 0:03:00.9]} 1... c5 {[%clk 0:02:59]} 2. Nf3 {[%clk 0:02:57.7]} 2...
d6 {[%clk 0:02:58.4]} 3. d4 {[%clk 0:02:56.8]} 3... cxd4 {[%clk 0:02:58.7]} 4.
Qxd4 {[%clk 0:02:57]} 4... a6 {[%clk 0:02:58.3]} 5. c4 {[%clk 0:02:53.5]} 5...
e6 {[%clk 0:02:56.9]} 6. Nc3 {[%clk 0:02:53.6]} 6... Nf6 {[%clk 0:02:57.3]} 7.
Be2 {[%clk 0:02:53.4]} 7... Be7 {[%clk 0:02:57.4]} 8. O-O {[%clk 0:02:53.9]}
8... O-O {[%clk 0:02:52.3]} 9. b3 {[%clk 0:02:53.6]} 9... Nbd7 {[%clk
0:02:52.5]} 10. Bb2 {[%clk 0:02:53.5]} 10... Qc7 {[%clk 0:02:53.1]} 11. Rac1
{[%clk 0:02:52.9]} 11... b6 {[%clk 0:02:28.8]} 12. Rfd1 {[%clk 0:02:50.7]} 12...
Bb7 {[%clk 0:02:25.4]} 13. Qe3 {[%clk 0:02:30.1]} 13... Rac8 {[%clk 0:02:24.2]}
14. Nd4 {[%clk 0:02:28.5]} 14... Rfd8 {[%clk 0:02:09.9]} 15. Qg3 {[%clk
0:02:27.1]} 15... Bf8 {[%clk 0:01:57.4]} 16. f3 {[%clk 0:02:20.9]} 16... Qb8
{[%clk 0:01:21.2]} 17. Kh1 {[%clk 0:02:08.2]} 17... Ba8 {[%clk 0:01:00.6]} 18.
Bf1 {[%clk 0:02:06.7]} 18... Ne5 {[%clk 0:00:57.1]} 19. Qf2 {[%clk 0:01:29.9]}
19... Ng6 {[%clk 0:00:55.2]} 20. Rd2 {[%clk 0:01:26.5]} 20... Be7 {[%clk
0:00:55.2]} 21. Rcd1 {[%clk 0:01:25.6]} 21... Bb7 {[%clk 0:00:55.3]} 22. Nc2
{[%clk 0:01:19.5]} 22... Ba8 {[%clk 0:00:55]} 23. Ne3 {[%clk 0:01:16.9]} 23...
h6 {[%clk 0:00:54.8]} 24. Qg3 {[%clk 0:00:56.9]} 24... Nd7 {[%clk 0:00:53.6]}
25. Ba3 {[%clk 0:00:55.9]} 25... Nc5 {[%clk 0:00:48.8]} 26. Bb2 {[%clk
0:00:50.5]} 26... Bf8 {[%clk 0:00:48.2]} 27. h4 {[%clk 0:00:48.4]} 27... Qc7
{[%clk 0:00:41.3]} 28. h5 {[%clk 0:00:48.4]} 28... Ne5 {[%clk 0:00:41.5]} 29. b4
{[%clk 0:00:41.7]} 29... Ncd7 {[%clk 0:00:40.1]} 30. f4 {[%clk 0:00:38.9]} 30...
Nc6 {[%clk 0:00:39.8]} 31. a3 {[%clk 0:00:34]} 31... Bb7 {[%clk 0:00:33.7]} 32.
Be2 {[%clk 0:00:33.4]} 32... Ne7 {[%clk 0:00:32.4]} 33. Bf3 {[%clk 0:00:32.1]}
33... Kh8 {[%clk 0:00:32.3]} 34. Be2 {[%clk 0:00:22.3]} 34... Nf6 {[%clk
0:00:32.1]} 35. Bf3 {[%clk 0:00:19.9]} 35... Neg8 {[%clk 0:00:27.2]} 36. Qh4
{[%clk 0:00:20]} 36... Be7 {[%clk 0:00:26.5]} 37. Qg3 {[%clk 0:00:18.6]} 37...
Bf8 {[%clk 0:00:25.7]} 38. Ne2 {[%clk 0:00:19.2]} 38... e5 {[%clk 0:00:22.7]}
39. Nd5 {[%clk 0:00:14.9]} 39... Bxd5 {[%clk 0:00:22]} 40. exd5 {[%clk
0:00:12.9]} 40... exf4 {[%clk 0:00:21.8]} 41. Qxf4 {[%clk 0:00:12.9]} 41... Re8
{[%clk 0:00:21.4]} 42. Ng3 {[%clk 0:00:13.1]} 42... Nd7 {[%clk 0:00:19.3]} 43.
Nf5 {[%clk 0:00:10.7]} 43... Ne5 {[%clk 0:00:19.3]} 44. Be2 {[%clk 0:00:06.2]}
44... Qd7 {[%clk 0:00:19.1]} 45. Rc1 {[%clk 0:00:05.5]} 45... Nf6 {[%clk
0:00:19.1]} 46. Rdc2 {[%clk 0:00:04]} 46... Kh7 {[%clk 0:00:17]} 47. Nxh6 {[%clk
0:00:02.4]} 47... gxh6 {[%clk 0:00:16.5]} 48. Qxf6 {[%clk 0:00:02.8]} 48... Bg7
{[%clk 0:00:17.4]} 49. Qf2 {[%clk 0:00:02.6]} 49... Ng4 {[%clk 0:00:17.3]} 50.
Bxg4 {[%clk 0:00:02.5]} 50... Qxg4 {[%clk 0:00:17.3]} 51. Bxg7 {[%clk
0:00:02.9]} 51... Kxg7 {[%clk 0:00:15.5]} 52. Rf1 {[%clk 0:00:03.5]} 52... Re7
{[%clk 0:00:15.3]} 53. Rc3 {[%clk 0:00:03.9]} 53... Rce8 {[%clk 0:00:15.6]} 54.
Rg3 {[%clk 0:00:04.5]} 54... f5 {[%clk 0:00:15.3]} 55. Rxg4+ {[%clk 0:00:04.7]}
55... fxg4 {[%clk 0:00:13.6]} 56. Qf6+ {[%clk 0:00:05.6]} 56... Kh7 {[%clk
0:00:14.4]} 57. Qg6+ {[%clk 0:00:06.2]} 57... Kh8 {[%clk 0:00:14.2]} 58. Qxh6+
{[%clk 0:00:07.1]} 58... Kg8 {[%clk 0:00:15.1]} 59. Qg6+ {[%clk 0:00:07.4]}
59... Kh8 {[%clk 0:00:15]} 60. Qf6+ {[%clk 0:00:07.1]} 60... Kg8 {[%clk
0:00:14.8]} 61. Qxd6 {[%clk 0:00:08]} 1-0

[Event "Late-Titled-Tuesday-Blitz-May-28-2024"]
[Site "Chess.com"]
[Date "2024.05.28"]
[Round "8"]
[White "GoltsevDmitry2000"]
[Black "ccccvhhhj"]
[Result "0-1"]
[WhiteElo "2698"]
[BlackElo "2458"]
[TimeControl "180+1"]
[EndTime "15:29:26 PDT"]
[Termination "ccccvhhhj won by checkmate"]

1. e4 {[%clk 0:02:59.5]} 1... e6 {[%clk 0:03:00.2]} 2. d4 {[%clk 0:02:59]} 2...
d5 {[%clk 0:03:01.1]} 3. exd5 {[%clk 0:02:59.9]} 3... exd5 {[%clk 0:03:01.5]} 4.
Nf3 {[%clk 0:03:00.8]} 4... Nf6 {[%clk 0:03:00.4]} 5. c4 {[%clk 0:03:01.7]} 5...
Be7 {[%clk 0:03:00.8]} 6. Nc3 {[%clk 0:03:02.6]} 6... Bg4 {[%clk 0:03:01.2]} 7.
Bd3 {[%clk 0:03:00.6]} 7... c6 {[%clk 0:03:01.2]} 8. O-O {[%clk 0:03:00.9]} 8...
O-O {[%clk 0:03:01.6]} 9. Bg5 {[%clk 0:03:00.7]} 9... dxc4 {[%clk 0:03:00.3]}
10. Bxc4 {[%clk 0:03:01.6]} 10... Nbd7 {[%clk 0:03:00.9]} 11. h3 {[%clk
0:03:00.7]} 11... Bh5 {[%clk 0:03:01]} 12. Re1 {[%clk 0:03:01.3]} 12... Nb6
{[%clk 0:03:01.1]} 13. Bb3 {[%clk 0:03:01.2]} 13... Re8 {[%clk 0:02:56.9]} 14.
g4 {[%clk 0:02:51.3]} 14... Bg6 {[%clk 0:02:56.8]} 15. Ne5 {[%clk 0:02:51.6]}
15... Nbd5 {[%clk 0:02:57.1]} 16. Qf3 {[%clk 0:02:50.8]} 16... a5 {[%clk
0:02:51.2]} 17. Re2 {[%clk 0:02:43.9]} 17... Nxc3 {[%clk 0:02:42.8]} 18. bxc3
{[%clk 0:02:42.2]} 18... a4 {[%clk 0:02:43.5]} 19. Bc4 {[%clk 0:02:41.1]} 19...
Nd5 {[%clk 0:02:37.9]} 20. Nxg6 {[%clk 0:02:32]} 20... Bxg5 {[%clk 0:02:15.8]}
21. Ne5 {[%clk 0:02:32.2]} 21... Bf6 {[%clk 0:02:00.4]} 22. Nxf7 {[%clk
0:02:22.1]} 22... Kxf7 {[%clk 0:01:57.1]} 23. Rxe8 {[%clk 0:02:22.6]} 23... Kxe8
{[%clk 0:01:49]} 24. Re1+ {[%clk 0:02:21]} 24... Be7 {[%clk 0:01:49.3]} 25. Qf5
{[%clk 0:02:13.4]} 25... Qd6 {[%clk 0:01:29]} 26. Qxh7 {[%clk 0:02:10.1]} 26...
Kd7 {[%clk 0:01:26.9]} 27. Qxg7 {[%clk 0:02:03.9]} 27... Nf4 {[%clk 0:01:18.4]}
28. Qh7 {[%clk 0:01:53]} 28... Rf8 {[%clk 0:01:11.3]} 29. Re3 {[%clk 0:01:29.4]}
29... Qf6 {[%clk 0:01:00.5]} 30. Qe4 {[%clk 0:01:07.8]} 30... Bd6 {[%clk
0:00:53.5]} 31. Rf3 {[%clk 0:00:50.4]} 31... Rh8 {[%clk 0:00:44]} 32. Bf1 {[%clk
0:00:32.7]} 32... Re8 {[%clk 0:00:36.6]} 33. Qc2 {[%clk 0:00:26.9]} 33... Re1
{[%clk 0:00:30.8]} 34. d5 {[%clk 0:00:13.7]} 34... Qe5 {[%clk 0:00:23.1]} 35.
dxc6+ {[%clk 0:00:10.7]} 35... bxc6 {[%clk 0:00:24]} 36. Qf5+ {[%clk 0:00:02.1]}
36... Qxf5 {[%clk 0:00:21.4]} 37. gxf5 {[%clk 0:00:03]} 37... Ke7 {[%clk
0:00:16.5]} 38. Re3+ {[%clk 0:00:03.2]} 38... Rxe3 {[%clk 0:00:16]} 39. fxe3
{[%clk 0:00:04.1]} 39... Nd5 {[%clk 0:00:15.1]} 40. Kf2 {[%clk 0:00:04]} 40...
Nxc3 {[%clk 0:00:15.4]} 41. Kf3 {[%clk 0:00:03]} 41... Nxa2 {[%clk 0:00:15]} 42.
h4 {[%clk 0:00:03.6]} 42... Nc3 {[%clk 0:00:15.2]} 43. Kg4 {[%clk 0:00:03.6]}
43... a3 {[%clk 0:00:15.2]} 44. Bc4 {[%clk 0:00:04.3]} 44... Be5 {[%clk
0:00:14.4]} 45. h5 {[%clk 0:00:04.2]} 45... Nb5 {[%clk 0:00:14.4]} 46. h6 {[%clk
0:00:03.9]} 46... Nd6 {[%clk 0:00:15.1]} 47. Be6 {[%clk 0:00:02.7]} 47... c5
{[%clk 0:00:15]} 48. h7 {[%clk 0:00:02.6]} 48... c4 {[%clk 0:00:15.4]} 49. Kg5
{[%clk 0:00:02.2]} 49... a2 {[%clk 0:00:15]} 50. Kg6 {[%clk 0:00:01.1]} 50...
a1=Q {[%clk 0:00:14.7]} 51. h8=Q {[%clk 0:00:01.5]} 51... Bxh8 {[%clk
0:00:14.4]} 52. Kg5 {[%clk 0:00:01.5]} 52... Qf6+ {[%clk 0:00:14.4]} 53. Kf4
{[%clk 0:00:01.2]} 53... c3 {[%clk 0:00:15]} 54. Kf3 {[%clk 0:00:01.3]} 54... c2
{[%clk 0:00:15.4]} 55. Bc4 {[%clk 0:00:01.5]} 55... Nxc4 {[%clk 0:00:14.5]} 56.
e4 {[%clk 0:00:01.7]} 56... Qc3+ {[%clk 0:00:14.8]} 57. Kg4 {[%clk 0:00:01.9]}
57... c1=Q {[%clk 0:00:12.9]} 58. f6+ {[%clk 0:00:02.8]} 58... Bxf6 {[%clk
0:00:12.3]} 59. e5 {[%clk 0:00:03.7]} 59... Qd4+ {[%clk 0:00:12.5]} 60. Kf5
{[%clk 0:00:04.6]} 60... Qcf4+ {[%clk 0:00:12.3]} 61. Kg6 {[%clk 0:00:05.5]}
61... Qg4+ {[%clk 0:00:11.9]} 62. Kh7 {[%clk 0:00:06.4]} 62... Qde4+ {[%clk
0:00:12.2]} 63. Kh6 {[%clk 0:00:07.3]} 63... Qeg6# {[%clk 0:00:12.5]} 0-1